Cogmind - Beta 15 @@@ ROGUE MODE // 2025.08.22 @ 20:22:16 Player: JuustuToug Result: Destroyed by S-10 Pest with Light Assault Rifle Performance ------------- Evolutions (2) 1000 Regions Visited (4) 800 Robots Destroyed (37) 185 Value Destroyed (1391) 1391 Prototype IDs (8) 160 Alien Tech Used (0) 0 Bonus (208) 208 TOTAL SCORE: 3744 Bonus ------- High Alert Combat Kills 8 Entered Garrisons 200 Cogmind --------- Core Integrity 0/550 Matter 123/300 Energy 112/150 System Corruption 3% Temperature Cool (0) Movement Hovering (60) Location -8/Garrison Parts ------- > --- POWER (1) -------- Light Angular Momentum Engine > --- PROPULSION (3) --- Gravmag Array > --- UTILITY (4) ------ Improved Heat Sink Improved Reaction Control System Improved Hacking Suite Improved System Restoration Module > --- WEAPON (3) ------- Axe > --- INVENTORY (5) ---- Relay Coupler [Grunt] (41) Remote Datajack Peak State ------------ > --- POWER ------------ Light Angular Momentum Engine > --- PROPULSION ------- Gravmag Array > --- UTILITY ---------- Improved Reaction Control System Improved Hacking Suite Improved System Restoration Module > --- WEAPON ----------- Axe > --- INVENTORY -------- Improved Heat Sink Relay Coupler [Grunt] Remote Datajack [Rating: 34] Favorites ----------- Power Micro Nuclear Core Engine Ion Engine Power Core Micro Nuclear Core Propulsion Aluminum Leg Leg Aluminum Leg Hover Unit Gravmag Array Utility Light Armor Plating Device Improved Heat Sink Storage Medium Storage Unit Hackware Improved Hacking Suite Protection Light Armor Plating Weapon Improved Assault Rifle Energy Gun EM Pulse Gun Energy Cannon Phase Cannon Ballistic Gun Improved Assault Rifle Launcher Mini Grenade Launcher Slashing Weapon Axe Build | -11 -10 -9 -8 -8 ------- Run | Yrd Mat Mat Mat Gar Slots Evolved 4 | . . 2 2 . Power . | . . . . . Propulsion 1 | . . 1 . . Utility 2 | . . 1 1 . Weapon 1 | . . . 1 . Parts Attached 43 | 6 1 9 3 24 Power 4 | 1 . 1 . 2 Engine 3 | 1 . 1 . 1 Core 1 | . . . . 1 Reactor . | . . . . . Propulsion 9 | 2 . 2 1 4 Treads . | . . . . . Leg 8 | 2 . 2 1 3 Wheel . | . . . . . Hover 1 | . . . . 1 Flight . | . . . . . Utility 16 | 1 1 2 2 10 Device 8 | . . 2 . 6 Storage 2 | 1 . . 1 . Processor . | . . . . . Hackware 1 | . . . . 1 Protection 5 | . 1 . 1 3 Artifact . | . . . . . Weapon 14 | 2 . 4 . 8 Energy Gun 4 | . . 2 . 2 Energy Cannon 2 | . . . . 2 Ballistic Gun 6 | 2 . 1 . 3 Ballistic Cannon . | . . . . . Launcher 1 | . . 1 . . Special Weapon . | . . . . . Impact Weapon . | . . . . . Slashing Weapon 1 | . . . . 1 Piercing Weapon . | . . . . . Special Melee Weapon . | . . . . . Unidentified Prototypes 2 | . . 2 . . Corrupted Parts 2 | . . 1 . 1 System Corruption 6 | . . 3 . 3 Parts Lost 12 | . . . 3 9 Power . | . . . . . Propulsion 6 | . . . 1 5 Utility 2 | . . . 1 1 Weapon 4 | . . . 1 3 Highest Loss Streak 3 | . . . 2 3 To Critical Strikes . | . . . . . Average Backups 7 | 2 4 7 8 9 Power 1 | . 1 1 1 1 Propulsion . | . . 1 1 . Utility 2 | . 1 2 2 3 Weapon 2 | 1 2 2 2 2 Tool/Special . | . . . . . Unused Backups 18 | . . 7 . 11 Power 4 | . . 1 . 3 Propulsion 2 | . . 1 . 1 Utility 5 | . . 1 . 4 Weapon 5 | . . 4 . 1 Tool/Special 2 | . . . . 2 Average Slot Usage (%) 93 | . 98 98 92 90 Engine 6 | . 14 11 9 1 Core 3 | . . . . 6 Leg 26 | . 28 31 24 23 Device 11 | . . 10 16 13 Storage 9 | . 14 11 9 8 Protection 11 | . 12 11 7 11 Energy Gun 7 | . . 15 16 4 Ballistic Gun 14 | . 28 6 9 15 Slashing Weapon 1 | . . . . 3 Peak Build Rating 34 | 6 7 15 18 34 Average Rating 18 | 3 6 11 16 26 On Entrance 8 | . 6 7 14 17 Naked Turns 40 | . . . . 40 Heaviest Build 43 | 14 17 22 32 43 Greatest Support 36 | 20 20 30 36 36 Greatest Overweight (x) 3 | 1 . . 1 3 Average Overweight (x) . | . . . . . Largest Inventory Capacity 10 | 8 8 8 10 10 Average Capacity 8 | 6 8 8 9 9 Most Carried 10 | 5 7 8 10 10 Average Carried 7 | 2 4 7 8 9 Final Capacity 10 | 8 8 8 10 5 Final Carried 9 | 2 7 8 9 2 Class Distribution -------------------- 51% | Mutant 19% | Scavenger-Tank 17% | Scavenger-Mutant 8% | Tank Dominant Class ---------------- Mutant | -10/Materials Mutant | -9/Materials Tank | -8/Materials Scavenger-Tank | -8/Garrison Resources | -11 -10 -9 -8 -8 ----------- Run | Yrd Mat Mat Mat Gar Matter Collected 943 | 213 87 93 115 435 Remotely . | . . . . . Salvage Created 1093 | . 25 432 193 443 Parts 71 | . 2 29 17 23 Haulers Intercepted 2 | . . 2 . . Recyclers Shooed 1 | . . 1 . . Parts Field Recycled . | . . . . . Retrieved Matter . | . . . . . Parts Self-Destructed . | . . . . . Prevented . | . . . . . Kills | -11 -10 -9 -8 -8 ------- Run | Yrd Mat Mat Mat Gar Combat Hostiles Destroyed 30 | . . 11 6 13 Guns 14 | . . 2 2 10 AOE 15 | . . 9 4 2 Classes Destroyed 10 | . 1 5 3 1 Builder 1 | . . . 1 . Hauler 2 | . . 2 . . Recycler 1 | . . 1 . . Operator 1 | . . . 1 . Watcher 2 | . 1 1 . . Swarmer 14 | . . 7 3 4 Grunt 9 | . . 3 1 5 Brawler 1 | . . . 1 . Sentry 3 | . . 1 1 1 Programmer 3 | . . . . 3 Best Kill Streak 5 | . 1 5 4 4 Combat Bots Only 4 | . . 4 3 4 Max Kills in Single Turn 3 | . 1 2 3 1 Gunslinging . | . . . . . Exploded 3 | . . 2 3 1 Melee . | . . . . . Uniques/NPCs Destroyed . | . . . . . Combat | -11 -10 -9 -8 -8 -------- Run | Yrd Mat Mat Mat Gar Hostile Shots Fired 229 | . 4 31 20 174 Missed 71 | . 3 9 8 51 Hits 158 | . 1 22 12 123 Melee 7 | . . . . 7 Projectile 151 | . 1 22 12 116 Critical Strikes 9 | . . . 1 8 Part Disruptions 1 | . . . . 1 Damage Taken 2852 | . 10 299 314 2229 Core 582 | . . 31 57 494 Absorbed by Shields . | . . . . . Core Remaining (%) 97 | 100 100 92 . . Volleys Fired 71 | . 5 21 8 37 Largest 3 | . 2 2 3 3 Hottest 170 | . 40 80 103 170 Shots Fired 160 | . 10 37 22 91 Gun 146 | . 10 32 21 83 Cannon 6 | . . . . 6 Launcher 8 | . . 5 1 2 Special . | . . . . . Kinetic 85 | . 10 7 7 61 Thermal 6 | . . . . 6 Explosive 8 | . . 5 1 2 Electromagnetic 61 | . . 25 14 22 Robot Hit Streak 11 | . 2 9 8 11 Robot Miss Streak 4 | . 4 2 2 3 Penetration Max . | . . . . . Secondary Targets . | . . . . . Shots Hit Robots 102 | . 4 19 15 64 Core Hits 60 | . 1 25 10 24 Critical Kills . | . . . . . Critical Parts Destroyed 2 | . . . 1 1 Critical Strikes 2 | . . . 1 1 Destroy 2 | . . . 1 1 Melee Attacks 13 | . . . . 13 Impact . | . . . . . Slashing 13 | . . . . 13 Piercing . | . . . . . Sneak Attacks 1 | . . . . 1 Combat Hostiles 1 | . . . . 1 Follow-up Attacks . | . . . . . Damage Inflicted 2642 | . 49 698 493 1402 Guns 1459 | . 49 258 181 971 Cannons 123 | . . . . 123 Explosions 986 | . . 440 312 234 Melee 69 | . . . . 69 Ramming 5 | . . . . 5 Kinetic 886 | . 49 57 49 731 Thermal 321 | . . 83 50 188 Explosive 788 | . . 357 262 169 Electromagnetic 573 | . . 201 132 240 Impact . | . . . . . Slashing 69 | . . . . 69 Piercing . | . . . . . Highest Corruption 5 | . . 3 . 5 Average Corruption 4 | . . 3 . 4 Corruption Purged 2 | . . . . 2 Corruption Blocked . | . . . . . Effects 21 | . . . . 21 Message Errors 5 | . . . . 5 Matter Fused 4 | . . . . 4 Heat Flow Errors 3 | . . . . 3 Energy Discharges 2 | . . . . 2 Parts Fused 2 | . . . . 2 Data Loss (minor) 1 | . . . . 1 Data Loss (major) 2 | . . . . 2 Alerts 2 | . . . . 2 Overload Shots . | . . . . . Overflow Damage 106 | . . 21 46 39 Projectiles . | . . . . . Explosions 92 | . . 21 46 25 Melee 14 | . . . . 14 Knockbacks . | . . . . . Impact . | . . . . . Kinetic . | . . . . . Secondary . | . . . . . Self-Inflicted Damage 359 | . . 72 130 157 Shots 5 | . . 2 2 1 Rammed 2 | . . . . 2 Targets Rammed 3 | . . 1 . 2 Kicked 1 | . . 1 . . Crushed . | . . . . . Highest Temperature 287 | . . 66 147 287 Average Temperature 54 | . . 27 80 56 Received Heat Transfer 573 | . 6 84 72 411 Siege Activations . | . . . . . Martial Activations . | . . . . . Shielding Activations . | . . . . . Robots Disrupted . | . . . . . Combat Hostiles . | . . . . . Robots Corrupted 1 | . . . . 1 Combat Hostiles 1 | . . . . 1 Parts Fried 2 | . . . 1 1 Impact Corruptions . | . . . . . Robots Melted . | . . . . . Combat Hostiles . | . . . . . Parts Melted . | . . . . . Heat Transferred 298 | . . 100 . 198 Parts Sabotaged . | . . . . . Parts Stolen . | . . . . . Parts Stripped . | . . . . . Power Chain Reactions 3 | . . 1 1 1 Alert | -11 -10 -9 -8 -8 ------- Run | Yrd Mat Mat Mat Gar Maximum Alert Level 2 | . . 1 1 2 Low Security (%) 46 | 100 100 89 58 5 Level 1 32 | . . 10 41 52 Level 2 20 | . . . . 42 Level 3 . | . . . . . Level 4 . | . . . . . Level 5 . | . . . . . High Security . | . . . . . Max Security . | . . . . . Peak Influence 692 | . 7 248 234 692 Initial 141 | . . . 97 141 Average 230 | . . 53 156 408 Influence Increases 1353 | . 7 444 261 641 Destroy 0b10 Robot/C 600 | . . 220 120 260 Destroy 0b10 Robot/NC 35 | . 5 20 10 . Destroy Leader 68 | . 2 46 20 . Successful Hack 100 | . . 46 16 38 Disable Machine 60 | . . 45 15 . Anti-Garrison Action 100 | . . . . 100 Destroy Structure 165 | . . 37 35 93 Lose Combat Pursuer 225 | . . 30 45 150 Influence Decreases 661 | . 7 212 275 167 Entered New Map 212 | . . . 135 77 Time Decay 300 | . 7 183 110 . Lost Part 120 | . . . 30 90 Purge Threat 29 | . . 29 . . Squads Dispatched 2 | . . 2 . . Investigation . | . . . . . Extermination . | . . . . . Reinforcement 2 | . . 2 . . Assault . | . . . . . Garrison . | . . . . . Intercept . | . . . . . Searches Triggered . | . . . . . Construction Impeded . | . . . . . Haulers Reinforced . | . . . . . Active Scanning Responses . | . . . . . Cargo Convoy Interrupts . | . . . . . Stealth | -11 -10 -9 -8 -8 --------- Run | Yrd Mat Mat Mat Gar Distress Signals 3 | . . 1 . 2 Communications Jammed . | . . . . . Distress Signals . | . . . . . Times Spotted 63 | . 4 19 11 29 Peak Tracking Total 11 | . 2 4 4 11 Tactical Retreats 5 | . . 1 2 2 Traps | -11 -10 -9 -8 -8 ------- Run | Yrd Mat Mat Mat Gar Traps Triggered 2 | . . . . 2 Indirectly . | . . . . . Trap Hack Attempts . | . . . . . Triggered . | . . . . . Disarmed . | . . . . . Reprogrammed . | . . . . . Reused . | . . . . . Traps Extracted . | . . . . . Installed . | . . . . . Triggered . | . . . . . Machines | -11 -10 -9 -8 -8 ---------- Run | Yrd Mat Mat Mat Gar Machines Disabled 7 | . . 3 1 3 Max in Single Turn 2 | . . 1 1 2 Garrison Relay 1 | . . . . 1 Phase Generator 1 | . . . . 1 Machines Repaired . | . . . . . Machines Dismantled . | . . . . . Machines Sabotaged . | . . . . . Overloaded Fab Kills . | . . . . . Hacking | -11 -10 -9 -8 -8 --------- Run | Yrd Mat Mat Mat Gar Machines Accessed 15 | . 1 6 5 3 Terminals 12 | . . 5 4 3 Fabricators . | . . . . . Repair Stations . | . . . . . Recycling Units 1 | . 1 . . . Scanalyzers 1 | . . 1 . . Garrison Access 1 | . . . 1 . Total Hacks 31 | . 1 15 9 6 Successful 23 | . 1 13 6 3 Failed 8 | . . 2 3 3 Catastrophic 3 | . . . 2 1 Database Lockouts . | . . . . . Manual 4 | . . 2 2 . Terminals 27 | . . 13 8 6 Fabricators . | . . . . . Repair Stations . | . . . . . Recycling Units 1 | . 1 . . . Scanalyzers 2 | . . 2 . . Garrison Access 1 | . . . 1 . Terminal Hacks 19 | . . 11 5 3 Prototype ID Bank 3 | . . 2 1 . Level Access Points 1 | . . 1 . . Emergency Access Points 2 | . . . 1 1 Unreport Threat 1 | . . 1 . . Locate Traps 1 | . . . 1 . Maintenance Status 1 | . . . 1 . Investigation Status 1 | . . 1 . . Hauler Manifests 2 | . . 2 . . Zone Layout 5 | . . 4 1 . Garrison Registry 1 | . . . . 1 Patrol Navigation 1 | . . . . 1 Fabricator Hacks . | . . . . . Repair Station Hacks . | . . . . . Recycling Unit Hacks 1 | . 1 . . . Retrieve Components 1 | . 1 . . . Scanalyzer 2 | . . 2 . . Insert Component 1 | . . 1 . . Analyze 1 | . . 1 . . Garrison Access Hacks 1 | . . . 1 . Unlock Access 1 | . . . 1 . Unauthorized Hacks . | . . . . . Terminals . | . . . . . Fabricators . | . . . . . Repair Stations . | . . . . . Recycling Units . | . . . . . Scanalyzers . | . . . . . Garrison Access . | . . . . . Data Cores Recovered 1 | . . . 1 . Used . | . . . . . Hacking Detections 12 | . 1 5 4 2 Full Trace Events . | . . . . . Feedback Events . | . . . . . Feedback Blocked . | . . . . . Robot Schematics Acquired . | . . . . . Robots Built . | . . . . . Authchips . | . . . . . Time . | . . . . . Total Robot Build Rating . | . . . . . Part Schematics Acquired 1 | . . 1 . . Parts Built . | . . . . . Authchips . | . . . . . Time . | . . . . . Total Part Build Rating . | . . . . . Parts Repaired . | . . . . . Time . | . . . . . Parts Recycled . | . . . . . Recycled Matter . | . . . . . Retrieved Matter . | . . . . . Retrieved Components 2 | . 2 . . . Parts Scanalyzed 1 | . . 1 . . Part Schematics Acquired 1 | . . 1 . . Parts Damaged . | . . . . . Bothacking | -11 -10 -9 -8 -8 ------------ Run | Yrd Mat Mat Mat Gar Used RIF Installer . | . . . . . Robots Hacked . | . . . . . Non-combat . | . . . . . Combat . | . . . . . Robot Hacks Applied . | . . . . . Relay Couplers Released 3 | . . . . 3 Machine Destruction 3 | . . . . 3 Fabnet Peak Effective % . | . . . . . Robots Rewired . | . . . . . Allies Hacked . | . . . . . Hacks Repelled . | . . . . . Allies | -11 -10 -9 -8 -8 -------- Run | Yrd Mat Mat Mat Gar Total Allies . | . . . . . Largest Group . | . . . . . Highest-Rated Group . | . . . . . Highest-Rated Ally . | . . . . . Total Orders . | . . . . . Ally Attacks . | . . . . . Total Damage . | . . . . . Kills . | . . . . . Allies Corrupted . | . . . . . Allies Melted . | . . . . . Intel | -11 -10 -9 -8 -8 ------- Run | Yrd Mat Mat Mat Gar Active Infowar (turns) 776 | . . 552 223 1 Structural 776 | . . 552 223 1 Robot Analysis Total . | . . . . . Derelict Logs Recovered . | . . . . . Drone Launches . | . . . . . Drone Recoveries . | . . . . . Exploration | -11 -10 -9 -8 -8 ------------- Run | Yrd Mat Mat Mat Gar Turns Passed 2383 | 95 307 575 223 1183 Spaces Moved 1351 | 62 221 353 134 581 Core 104 | 20 . . . 84 Treads . | . . . . . Legs 1203 | 42 221 353 134 453 Wheels . | . . . . . Hover 44 | . . . . 44 Flight . | . . . . . Fastest Speed 50 | 50 120 120 120 50 Average Speed 131 | 111 120 120 127 146 Slowest Speed 330 | 120 120 120 190 330 Overloaded Moves . | . . . . . Propulsion Burnouts . | . . . . . Robots Hopped . | . . . . . Potential Cave-ins . | . . . . . Cave-ins Triggered . | . . . . . Exploration Rate (%) 31 | 4 38 36 21 59 Regions Visited 4 Branch Regions . Pre-discovered Areas . | . . . . . Known Exits Taken 2 | . . 1 1 . Unknown Exits Taken 2 | 1 1 . . . Scrap Searched . | . . . . . Spaces Dug 3 | . . . . 3 Terrain Destroyed 164 | . . 43 37 84 Melee 3 | . . . . 3 Projectile . | . . . . . AOE 161 | . . 43 37 81 Terrain Rammed . | . . . . . Walls Destroyed . | . . . . . Machines Disabled . | . . . . . Actions | -11 -10 -9 -8 -8 --------- Run | Yrd Mat Mat Mat Gar Total 1785 | 86 253 467 167 812 Wait 204 | 13 21 56 10 104 Move 1348 | 61 220 352 134 581 Hop . | . . . . . Pick Up 52 | 6 6 13 6 21 Fast Attach 9 | 2 . . . 7 Attach 20 | 4 1 2 4 9 Detach . | . . . . . Swap 32 | . . 11 4 17 Drop 28 | . . 11 1 16 Fire 71 | . 5 21 8 37 Melee 13 | . . . . 13 Ram 2 | . . . . 2 Kick 1 | . . 1 . . Crush . | . . . . . Escape Stasis 5 | . . . . 5 Rewire . | . . . . . Trap . | . . . . . Miscellaneous . | . . . . . Route ------- -11/Scrapyard -10/Materials -9/Materials (discovered 3 exits: *Mat x3) -8/Materials (discovered 2 exits: [*Sto] / Gar) -8/Garrison (discovered 3 exits: [*Mat x3]) History --------- Turn | Location | Event 35 | -11/Scrapyard | Discovered new exit (range 13) 96 | -11/Scrapyard | Entered Materials 292 | -10/Materials | Discovered new exit (range 12) 314 | -10/Materials | Build established: Mutant 403 | -10/Materials | Entered another Materials area 403 | -9/Materials | Evolved 2 slots: Propulsion x1, Utility x1 867 | -9/Materials | Identified exit to Materials 978 | -9/Materials | Entered another Materials area 978 | -8/Materials | Evolved 2 slots: Utility x1, Weapon x1 1143 | -8/Materials | Discovered new exit (range 13) 1201 | -8/Materials | Identified exit to Garrison 1201 | -8/Materials | Entered Garrison 1247 | -8/Garrison | Triggered checkpoint 1263 | -8/Garrison | Garrison Relay disabled 1886 | -8/Garrison | Phase Generator disabled 2143 | -8/Garrison | Spotted B-75 Beast 2303 | -8/Garrison | Released all parts (5) 2304 | -8/Garrison | Core integrity fell below 50% 2307 | -8/Garrison | Triggered checkpoint 2318 | -8/Garrison | Lost 3 parts (2n1w) 2318 | -8/Garrison | Discovered new exit (range 13) 2356 | -8/Garrison | Core integrity fell below 20% 2379 | -8/Garrison | Discovered new exit (range 14) 2379 | -8/Garrison | Discovered new exit (range 89) 2379 | -8/Garrison | Discovered new exit (range 66) 2384 | -8/Garrison | Destroyed by S-10 Pest with Light Assault Rifle Last Messages --------------- 02347_ W-25 Informer springs to life. 02348_ X-57 Shotgunner springs to life. 02348_ Dropped Stasis Canceller. 02350_ Acquired Gravmag Array. 02355_ Acquired Lgt. Angular Momentum Engine. 02356_ Imp. System Restoration Module purges 1% system corruption (4%). 02357_ W-25 Informer sends out distress signal. 02365_ Slammed into S-10 Pest. 02374_ Imp. System Restoration Module purges 1% system corruption (3%). 02379_ Connecting with Garrison Terminal... 02379_ EXIT=FOUND >>Download(Registry) Retrieving Garrison registry... Downloaded map data. Downloaded component registry. Downloaded security status. [Achievement: Back For More] Map ----- +----------------------------------------------------+ | ???????????????????????????## #######???# | | ????????????????????????????######??????# | | ????????????????????????????????????????### | | ??????????????????????????????????????????# | | ???????????????????????????????############ | | ???????????????????????????????# | | ???????????????????????????????# ## ### ### | | ???????????????????????????????# ## #?# #?# | | ???????????????????????????????# ## ### ##? | | ???????????????????????????????# ## !## !#? | | ???????????????????????????????# ## !## !#? | | ???????????????????????????????# ## !## !#? | | ???????????????????????????????# #########? | | ???????????????????????????????# #????????? | | ???????????????################# ########## | | ???????????????# | | ???????????????# | | ???????????????# ######## | | ???????????????# #??????? | | ???????????????# #??????? | | ???????????????# #??????? | | ???????????????# #??????? | | ???????????????# #?###### | | ???????????????# #?### # | | ???????????????# < #?## | | ???????????????# @ #?# | | ???????????????# #?# # | | ?????????####### #?# # | | ?????????#" s s #?###### | | ?????????#"T"### s #??????? | | ?????????#####?# #??????? | | ???????????????# #??????? | | ???????????????# Y #??????? | | ???????????????# #??????? | | ?????????#####?#########xl#### ###??????? | | ?????????# #?????????# ######????????? | | ????######"""########### ################# | | ????# ^^ | | ????# ^^ | | ????# ############################ ####### | | ????# #?????????????????????????## ^##? | | ??### ###???????????????????????# #? | | ??#"# #"#??????????????????????## ##### ## | | ??#" "#??????????????????????# ##### # | | ??#" "#??????????????????????## ## ##^## | | ??#" "#??????????????????????## ## | | ??#"# #"#??????????????????????#" ^! !! "# | | ??########??????????????????????#"""""""""# | | ????????????????????????????????########### | | ??????????????????????????????????????????? | +----------------------------------------------------+ Best States ------------- Heat Dissipation 45 Energy Generation 18 Energy Capacity 280 Matter Stores 300 Matter Capacity 300 Sight Range 16 Terrain Scan Density 10 Additional Mass Support 6 Armor Coverage 450 Evasion (%) 63 Offensive Hacking 12 Item Schematics ----------------- Weight Redist. System | -9/Materials | Scanalyzed Robot Schematics ------------------ None Fabricated ------------ Nothing Repaired ---------- Nothing Alien Tech Used ----------------- None Achievements -------------- Back For More Challenges ------------ None Game ------ Seed PhasingExpertClaws Manual? 0 Play Time 00:26:42 Cumulative 67.5 hours Start 2025.08.22 @ 19:39:57 End 2025.08.22 @ 20:22:16 Sessions 1 Manual Loads 0 Difficulty Rogue Special Mode None Game No. 50 Rogue 50 Adventurer 0 Explorer 0 Win Type - Total 2 Types 1/0/0/1/0/0/0/0/0/0 Lore% 57 Gallery% 49 Achievement% 43 Wizard Run 0 Options --------- Layout 1 ASCII 0 Keyboard 0 Movement Mouse Keybinds 0 Fullscreen 1 Font 24/Smallcaps Map View 50x35 Zoom Use 0% Tactical HUD 1 Map Filters NONE Filters NONE Steam 1 RUN: e9e7f7a1-a75c-482b-8ecd-84d1c9bbd8c8